bitfinex/quotes_SOLUSD_20251120
["timestamp","ask_amount","ask_price","bid_price","bid_amount"]
[1763677583120,4.94231998,136.26,136.25,0.66]
[1763677583436,6.24603554,136.32,136.26,9.93098926]
[1763677583437,26.12800539,136.32,136.26,9.93098926]
[1763677583617,0.7,136.33,136.26,9.93098926]
[1763677583823,6.94603554,136.33,136.27,9.78882769]
[1763677584037,6.94603554,136.33,136.26,18.26312157]
[1763677584038,6.94603554,136.33,136.29,9.93098926]
[1763677584236,6.24603554,136.33,136.29,9.93098926]
[1763677584537,22.18812586,136.33,136.29,9.93098926]
[1763677584744,0.1,136.34,136.29,9.93098926]
[1763677584931,0.8,136.34,136.28,1.76]
[1763677585255,0.1,136.34,136.29,9.93098926]
[1763677585422,6.31448424,136.41,136.31,9.93098926]
[1763677585622,5.77730812,136.42,136.33,9.93098926]
[1763677585841,49.45439966,136.42,136.33,9.93098926]
[1763677586027,49.45439966,136.42,136.33,0.14216157]
[1763677586343,57.59650331,136.42,136.34,1.76]
[1763677587022,66.00235199,136.42,136.34,1.76]
[1763677587746,30.35566617,136.42,136.34,1.76]
[1763677587921,0.7,136.42,136.34,1.76]
[1763677588322,26.3561644,136.42,136.33,0.14216157]
[1763677588551,63.21649967,136.42,136.34,1.76]
[1763677588844,8.03102704,136.41,136.34,1.76]
[1763677589030,10.97317701,136.41,136.34,1.76]
[1763677589539,3.64214997,136.41,136.34,1.76]
[1763677589725,7.33045207,136.42,136.34,1.76]
[1763677590129,7.33045207,136.42,136.34,2.42]
[1763677590327,43.41473072,136.43,136.35,9.93098926]
[1763677590640,51.68838521,136.43,136.35,9.93098926]
[1763677591436,18.12096,136.39,136.31,18.12096]
[1763677591626,8.15112343,136.39,136.28,22.06612482]
[1763677591945,1.76,136.4,136.3,9.93098926]
[1763677591946,0.68,136.38,136.3,9.93098926]
[1763677592245,1.76,136.4,136.38,4.59065355]
[1763677592429,38.71915769,136.4,136.31,1.76]
[1763677592629,72.25090677,136.43,136.31,1.76]
[1763677592630,108.3356876,136.43,136.31,1.76]
[1763677592847,43.4536236,136.41,136.33,0.14216157]
[1763677593151,7.33092455,136.41,136.33,0.14216157]
[1763677593322,2.94214997,136.4,136.3,9.93098926]
[1763677593655,18.12096,136.38,136.27,0.7]
[1763677593823,1.76,136.38,136.31,1.76]
[1763677594146,2.44,136.38,136.29,1.76]
[1763677594640,36.97031991,136.37,136.29,1.76]
[1763677594842,7.33352889,136.36,136.28,0.7]
[1763677595038,44.81777578,136.36,136.29,1.76]
[1763677595348,4.88258185,136.35,136.29,1.76]
[1763677595536,4.88258185,136.34,136.29,1.76]
[1763677595720,12.98192008,136.34,136.29,1.76]
[1763677597135,6.32747954,136.34,136.29,1.76]
[1763677597538,18.12096,136.33,136.29,1.76]
[1763677598032,8.16843978,136.33,136.29,1.76]
[1763677598565,8.16843978,136.33,136.27,0.7]
[1763677598762,8.16843978,136.33,136.25,9.93098926]
[1763677599071,7.33568075,136.32,136.23,9.78882769]
[1763677599242,7.33568075,136.32,136.25,1.76]
[1763677599438,25.67488262,136.32,136.25,1.76]
[1763677599637,28.11488262,136.32,136.23,1.76]
[1763677599966,18.10659461,136.32,136.23,1.76]
[1763677600568,18.10659461,136.32,136.23,2.46]
[1763677600868,36.00287894,136.31,136.23,2.46]
[1763677601242,7.33675715,136.3,136.23,2.46]
[1763677601962,8.25570585,136.29,136.23,2.46]
[1763677602263,7.33675715,136.3,136.29,5e-08]
[1763677602564,18.26312157,136.29,136.23,2.46]
[1763677603563,25.60046175,136.29,136.23,2.46]
[1763677603950,25.60046175,136.29,136.2,9.78882769]
[1763677603951,16.25240808,136.29,136.2,10.48882769]
[1763677604166,34.59564676,136.29,136.21,2.46]
[1763677604362,70.99113995,136.29,136.21,2.46]
[1763677604944,70.99113995,136.29,136.21,0.7]
[1763677605144,70.99113995,136.29,136.21,2.46]
[1763677605357,72.75113995,136.29,136.21,0.7]
[1763677605559,72.75113995,136.29,136.19,0.7]
[1763677605757,18.12096,136.26,136.19,2.46]
[1763677606179,0.13,136.26,136.19,2.46]
[1763677606367,22.09212415,136.25,136.19,2.46]
[1763677606556,22.09212415,136.25,136.17,0.14216157]
[1763677606758,0.13,136.24,136.17,2.46]
[1763677607268,29.43157369,136.25,136.24,0.8163017]
[1763677607444,29.43157369,136.25,136.17,2.46]
[1763677608155,79.26584364,136.25,136.17,2.46]
[1763677608354,60.79234769,136.25,136.15,0.7]
[1763677608556,60.79234769,136.25,136.15,2.46]
[1763677608557,36.15579134,136.24,136.15,2.46]
[1763677609154,36.15579134,136.24,136.15,1.76]
[1763677609358,7.34052704,136.23,136.16,0.7]
[1763677609579,7.34052704,136.23,136.16,2.46]
[1763677609750,44.22212926,136.23,136.16,2.46]
[1763677609951,62.57344688,136.23,136.16,2.46]
[1763677610254,18.12096,136.22,136.16,2.46]
[1763677610454,18.12096,136.22,136.14,0.14216157]
[1763677610643,18.12096,136.22,136.15,2.44]
[1763677611265,7.34160487,136.21,136.15,2.44]
[1763677611463,25.46219825,136.22,136.16,0.68]
[1763677612273,2.18498625,136.22,136.16,0.68]
[1763677612674,9.52606854,136.22,136.16,0.68]
[1763677614115,87.06830262,136.22,136.12,27.90978769]
[1763677614283,3.55171099,136.21,136.03,2.19999999]
[1763677614597,0.14216157,136.2,136.03,0.2]
[1763677614773,22.13,136.15,136.03,0.88]
[1763677614971,14.11742972,136.14,136.05,1.99999999]
[1763677615173,0.14216157,136.12,136.06,1.99999999]
[1763677615389,4.70941749,136.13,136.06,1.99999999]
[1763677615607,8.15961133,136.12,136.06,1.99999999]
[1763677615894,15.50610581,136.12,136.06,1.99999999]
[1763677616068,8.15961133,136.11,136.05,2.67999999]
[1763677616264,8.15961133,136.1,136.04,1.99999999]
[1763677616484,11.34879011,136.11,136.03,0.2]
[1763677616769,6.11437976,136.07,136.03,0.2]
[1763677616969,6.11437976,136.06,136.03,2.19999999]
[1763677617281,6.11437976,136.05,136.03,0.2]
[1763677617485,0.14216157,136.09,136.06,7.6658657]
[1763677617696,9.78882769,136.08,136.03,0.2]
[1763677617871,1.76,136.07,136.03,0.2]
[1763677618072,7.34969866,136.06,136.03,0.2]
[1763677618379,1.76,136.07,136.03,0.2]
[1763677619599,1.76,136.07,136.02,0.2]
[1763677619812,0.14216157,136.06,136.0,0.2]
[1763677620098,4.87443202,136.05,136.0,0.2]
[1763677620270,4.87443202,136.04,136.0,0.2]
[1763677620604,9.78882769,136.06,136.0,0.2]
[1763677620976,0.14216157,136.05,136.0,0.2]
[1763677621589,9.78882769,136.03,135.96,0.2]
[1763677622101,9.78882769,136.0,135.96,2.19999999]
[1763677622476,15.83724828,136.02,135.96,2.19999999]
[1763677622669,2.95148496,135.99,135.96,2.19999999]
[1763677622872,2.95148496,135.99,135.96,0.2]
[1763677624692,9.78882769,136.01,135.96,0.2]
[1763677624891,2.95148496,135.98,135.96,0.2]
[1763677626211,9.78882769,136.05,135.99,1.99999999]
[1763677626408,47.32726219,136.05,135.99,1.99999999]
[1763677626713,0.7,136.03,135.99,1.99999999]
[1763677626910,39.39200824,136.04,135.99,2.67999999]
[1763677627210,3.84777187,136.06,136.01,0.68]
[1763677627699,5.8530796,136.05,136.01,0.68]
[1763677628096,22.11735222,136.07,136.02,9.93098926]
[1763677628412,44.71467043,136.13,136.02,9.93098926]
[1763677628602,2.94843917,136.11,136.03,0.68]
[1763677628797,22.59879876,136.11,136.03,0.68]
[1763677629107,54.97658912,136.12,136.03,0.68]
[1763677630013,63.59378959,136.12,136.03,0.68]
[1763677630516,70.94030839,136.12,136.03,0.68]
[1763677630701,60.97652304,136.12,136.03,0.68]
[1763677630887,16.77437512,136.12,136.03,0.68]
[1763677631086,39.03421004,136.12,136.04,9.93098926]
[1763677631289,16.77437512,136.12,136.04,11.69098926]
[1763677631589,16.77437512,136.12,136.06,0.14216157]
[1763677632108,8.61720047,136.12,136.08,0.14216157]
[1763677632284,3.89815389,136.15,136.08,0.14216157]
[1763677632483,4.83415944,136.14,136.09,0.68]
[1763677632688,17.15276393,136.17,136.15,0.62485779]
[1763677632912,8.40402116,136.17,136.11,0.68]
[1763677633112,3.8446727,136.18,136.12,0.14216157]
[1763677633312,11.18795327,136.18,136.12,0.14216157]
[1763677633482,11.18795327,136.18,136.13,0.68]
[1763677634090,11.18795327,136.18,136.12,0.14216157]
[1763677634091,33.44459153,136.18,136.1,0.68]
[1763677634295,80.29788892,136.18,136.1,0.68]
[1763677634499,36.07861295,136.17,136.1,0.68]
[1763677634701,80.29788892,136.18,136.1,0.68]
[1763677634894,80.11088596,136.18,136.1,0.68]
[1763677635094,0.14216157,136.17,136.1,0.68]
[1763677635298,40.11892841,136.17,136.08,0.68]
[1763677636693,25.70505287,136.16,136.08,0.68]
[1763677636918,18.36075205,136.16,136.08,0.68]
[1763677637136,58.58711984,136.16,136.08,0.68]
[1763677637532,38.16927402,136.15,136.08,0.68]
[1763677637741,1.76,136.15,136.04,0.14216157]
[1763677638017,5.65815389,136.15,136.05,0.68]
[1763677638421,42.31873975,136.15,136.05,0.68]
[1763677638608,25.71071769,136.13,136.05,0.68]
[1763677639096,15.6862505,136.13,136.05,0.68]
[1763677639292,51.99975789,136.13,136.05,0.68]
[1763677640329,59.34567723,136.13,136.05,0.68]
[1763677640821,23.03216984,136.13,136.05,0.68]
[1763677640996,7.34591934,136.13,136.05,0.68]
[1763677641192,46.6208901,136.14,136.05,0.68]
[1763677641903,9.78882769,136.14,136.05,0.68]
[1763677642224,17.13438217,136.14,136.05,0.68]
[1763677642407,53.96644458,136.14,136.05,0.68]
[1763677642724,18.36344939,136.14,136.05,0.68]
[1763677643105,18.18638908,136.14,136.05,0.68]
[1763677643310,54.3197352,136.14,136.05,0.68]
[1763677644302,72.68318459,136.14,136.05,0.68]
[1763677644828,4.87848475,136.13,136.05,0.68]
[1763677645012,12.22494375,136.12,136.05,0.68]
[1763677645199,64.2856232,136.14,136.05,0.68]
[1763677646320,8.14173609,136.13,136.06,9.93098926]
[1763677647303,42.16162906,136.17,136.09,0.69]
[1763677647502,36.625925,136.17,136.09,0.69]
[1763677647702,100.07796501,136.18,136.09,0.69]
[1763677647928,81.71955031,136.18,136.09,0.69]
[1763677648706,7.34376147,136.17,136.09,0.69]
[1763677649415,9.78882769,136.17,136.09,0.69]
[1763677649817,45.81378456,136.17,136.09,0.69]
[1763677650435,53.15754603,136.17,136.09,0.69]
[1763677651433,7.34376147,136.17,136.09,0.69]
[1763677652819,60.08399505,136.18,136.17,5e-08]
[1763677653027,9.78882769,136.17,136.11,0.66000005]
[1763677653709,20.22556249,136.18,136.11,0.66000005]
[1763677653912,1.24347846,136.19,136.12,0.14216157]
[1763677654143,7.34247619,136.2,136.12,0.14216157]
[1763677654436,7.34145448,136.22,136.12,0.14216157]
[1763677655028,61.85911751,136.22,136.14,0.14216157]
[1763677655527,51.88313947,136.22,136.14,0.82216157]
[1763677656619,59.22459395,136.22,136.14,0.82216157]
[1763677657148,23.34435909,136.23,136.15,9.78882769]
[1763677657356,4.91209668,136.22,136.15,9.78882769]
[1763677657518,36.53247256,136.26,136.17,0.14216157]
[1763677657716,32.32193576,136.27,136.17,1.90216157]
[1763677657717,23.91492526,136.27,136.17,1.90216157]
[1763677657949,47.83916908,136.28,136.27,3e-08]
[1763677658317,18.12096,136.25,136.19,0.14216157]
[1763677658542,40.26484887,136.25,136.19,0.82216157]
[1763677658746,22.14388887,136.25,136.19,0.82216157]
[1763677659044,7.33783387,136.28,136.19,0.82216157]
[1763677659347,18.12096,136.25,136.19,0.82216157]
[1763677659651,5.6689307,136.28,136.19,0.82216157]
[1763677660012,18.12096,136.25,136.19,0.82216157]
[1763677660455,18.12096,136.24,136.19,0.82216157]
[1763677660920,18.12096,136.24,136.21,0.14216157]
[1763677661314,18.12096,136.24,136.22,0.68]
[1763677661513,8.46431046,136.27,136.22,0.68]
[1763677661714,44.21626379,136.3,136.22,0.68]
[1763677662035,18.12096,136.27,136.22,0.68]
[1763677662236,18.12096,136.26,136.22,0.68]
[1763677663042,7.25344847,136.26,136.22,0.68]
[1763677663543,8.30081303,136.27,136.23,0.14216157]
[1763677663721,7.33575162,136.32,136.23,9.93098926]
[1763677664054,8.47217371,136.32,136.25,0.14216157]
[1763677664262,49.82392507,136.35,136.26,1.76]
[1763677664428,11.17421448,136.35,136.27,0.14216157]
[1763677664736,9.78882769,136.34,136.26,2.44]
[1763677665052,18.12096,136.31,136.26,2.44]
[1763677665352,18.12096,136.31,136.27,0.68]
[1763677665642,8.36698201,136.34,136.27,0.68]
[1763677665847,66.39909192,136.35,136.27,0.68]
[1763677665848,64.80692165,136.35,136.27,0.68]
[1763677666047,18.12096,136.32,136.27,0.68]
[1763677666733,18.12096,136.31,136.27,0.68]
[1763677667332,18.12096,136.31,136.24,0.14216157]
[1763677667551,18.12096,136.31,136.25,1.76]
[1763677667731,8.07864405,136.31,136.25,1.76]
[1763677667934,33.9778551,136.34,136.31,11.09153077]
[1763677668245,9.78882769,136.33,136.26,0.68]
[1763677668763,7.33568075,136.32,136.26,0.68]
[1763677668920,26.66273412,136.34,136.27,0.14216157]
[1763677668921,8.30622246,136.34,136.27,0.14216157]
[1763677669256,76.79521949,136.36,136.28,0.68]
[1763677669655,4.88395474,136.35,136.28,0.68]
[1763677670439,4.88395474,136.35,136.29,0.14216157]
[1763677670949,4.88395474,136.35,136.29,0.84216157]
[1763677671533,12.2181378,136.35,136.29,0.84216157]
[1763677671927,18.12096,136.35,136.29,0.84216157]
[1763677673053,3.166294,136.35,136.29,0.84216157]
[1763677673254,30.67136866,136.36,136.29,0.7]
[1763677673430,7.33418306,136.35,136.29,0.7]
[1763677673749,38.00509886,136.36,136.29,0.7]
[1763677673956,28.02732332,136.36,136.29,0.7]
[1763677675031,18.12096,136.35,136.29,0.7]
[1763677675747,25.45526319,136.35,136.29,0.7]
[1763677676048,7.33430319,136.35,136.29,0.7]
[1763677677048,28.02729609,136.36,136.29,0.7]
[1763677677244,15.9110891,136.36,136.29,0.7]
[1763677678143,18.12096,136.35,136.29,0.7]
[1763677679958,8.86119239,136.36,136.29,0.7]
[1763677680129,18.12096,136.37,136.3,0.14216157]
[1763677680333,18.12096,136.37,136.31,0.7]
[1763677680334,25.45395686,136.37,136.31,0.7]
[1763677681040,27.13823,136.37,136.31,0.7]
[1763677681445,9.01727,136.37,136.31,0.7]
[1763677681644,7.33257216,136.38,136.31,0.7]
[1763677681959,25.4531178,136.39,136.31,0.7]
[1763677682149,7.3321578,136.39,136.31,0.7]
[1763677682353,0.02,136.38,136.31,0.7]
[1763677682554,0.02,136.38,136.31,2.46]
[1763677683543,25.66194737,136.39,136.38,8.11387781]
[1763677683737,18.12096,136.36,136.31,2.46]
[1763677683936,4.86411829,136.35,136.31,1.76]
[1763677684134,4.86411829,136.35,136.32,0.7]
[1763677684338,20.28606597,136.36,136.32,0.7]
[1763677686443,25.45515795,136.35,136.32,0.7]
[1763677687362,18.12096,136.35,136.32,0.7]
[1763677688260,8.60953212,136.35,136.32,0.7]
[1763677688441,5.9710574,136.36,136.32,0.7]
[1763677688644,25.66412468,136.38,136.32,0.7]
[1763677690572,25.45341343,136.38,136.32,0.7]
[1763677692554,15.49633313,136.38,136.32,0.7]
[1763677693371,7.99945567,136.38,136.32,0.7]
[1763677693666,7.33245343,136.38,136.32,0.7]
[1763677694752,59.06618933,136.39,136.32,0.7]
[1763677695267,40.41101188,136.39,136.32,0.7]
[1763677695982,7.33245343,136.38,136.32,0.7]
[1763677696350,18.31383667,136.38,136.32,0.7]
[1763677696667,2.21272737,136.38,136.32,0.7]
[1763677696975,40.41101188,136.39,136.32,0.7]
[1763677697371,6.08798179,136.38,136.32,0.7]
[1763677697586,40.41101188,136.39,136.32,0.7]
[1763677698052,31.75156881,136.38,136.32,0.7]
[1763677698450,6.08798179,136.37,136.32,0.7]
[1763677698653,9.93098926,136.37,136.32,0.7]
[1763677698977,6.13439457,136.38,136.32,0.7]
[1763677699277,16.06538383,136.38,136.32,0.7]
[1763677699664,9.93098926,136.38,136.32,0.7]
[1763677700473,17.26344269,136.38,136.32,0.7]
[1763677700674,25.62091364,136.38,136.32,0.7]
[1763677701175,35.5519029,136.38,136.32,0.7]
[1763677701390,25.62091364,136.38,136.32,0.7]
[1763677701581,35.5519029,136.38,136.32,0.7]
[1763677702781,25.55223699,136.38,136.32,0.7]
[1763677703483,18.76074735,136.38,136.32,0.7]
[1763677704572,37.09188094,136.38,136.32,0.7]
[1763677704810,46.07281905,136.39,136.32,0.7]
[1763677704971,1.17635146,136.39,136.32,0.7]
[1763677705299,68.62331817,136.4,136.32,0.7]
[1763677706181,7.33191582,136.39,136.32,0.7]
[1763677706894,64.19316895,136.4,136.32,0.7]
[1763677707886,54.56590892,136.4,136.32,0.7]
[1763677708079,25.66170539,136.39,136.32,0.7]
[1763677708402,18.32978957,136.39,136.32,0.7]
[1763677708588,4.94686523,136.38,136.32,0.7]
[1763677708801,4.94686523,136.37,136.32,0.7]
[1763677709003,36.77613745,136.39,136.32,0.7]
[1763677709612,9.93098926,136.38,136.32,0.7]
[1763677709823,9.43098926,136.38,136.32,0.7]
[1763677710138,7.33251094,136.38,136.32,0.7]
[1763677710791,35.23422964,136.4,136.32,0.7]
[1763677710991,43.54941554,136.4,136.32,0.7]
[1763677711322,35.44877393,136.4,136.32,0.7]
[1763677712187,65.90719055,136.4,136.32,0.7]
[1763677712496,47.57874481,136.4,136.32,0.7]
[1763677713010,37.52991142,136.4,136.32,0.7]
[1763677713585,31.43467935,136.4,136.32,0.7]
[1763677713789,31.43467935,136.4,136.33,1.76]
[1763677714213,31.43467935,136.4,136.34,0.68]
[1763677714598,57.09462559,136.4,136.34,0.68]
[1763677715215,47.09915118,136.4,136.34,0.68]
[1763677715511,50.04195051,136.4,136.34,0.68]
[1763677717418,40.02024482,136.4,136.34,0.68]
[1763677718619,31.0753154,136.4,136.34,0.68]
[1763677719430,21.08380847,136.4,136.34,0.68]
[1763677720525,7.3315005,136.4,136.34,0.68]
[1763677720831,28.60252909,136.4,136.34,0.68]
[1763677721008,4.95476013,136.39,136.34,0.68]
[1763677721210,4.95476013,136.38,136.34,0.68]
[1763677721421,22.103557,136.4,136.34,0.68]
[1763677721737,61.00182818,136.41,136.34,0.68]
[1763677722327,7.3315005,136.4,136.34,0.68]
[1763677723133,16.06391154,136.4,136.34,0.68]
[1763677723324,6.0544895,136.4,136.34,0.68]
[1763677723522,61.00182818,136.41,136.34,0.68]
[1763677723720,24.90167534,136.41,136.4,1.40416782]
[1763677723920,24.90167534,136.41,136.35,0.68]
[1763677724233,47.01299114,136.41,136.35,0.68]
[1763677724420,72.67093409,136.41,136.35,0.68]
[1763677724807,72.78093409,136.41,136.35,0.567425]
[1763677725333,34.16824499,136.41,136.35,0.567425]
[1763677725535,24.18239195,136.41,136.35,0.567425]
[1763677725732,0.1,136.42,136.35,0.567425]
[1763677727737,202.54893753,136.45,136.35,0.567425]
[1763677727934,45.76341698,136.45,136.35,0.567425]
[1763677728533,25.65230137,136.44,136.35,0.567425]
[1763677728747,36.03860582,136.44,136.35,0.567425]
[1763677729631,18.12096,136.42,136.35,2.327425]
[1763677729836,18.12096,136.41,136.35,2.327425]
[1763677730219,18.12096,136.41,136.36,0.68]
[1763677731718,7.33108805,136.41,136.36,0.68]
[1763677733312,4.94685426,136.4,136.36,0.68]
[1763677733517,4.94685426,136.39,136.36,0.68]
[1763677733743,57.74940704,136.42,136.39,12.51727369]
[1763677733930,18.12096,136.4,136.34,1.76]
[1763677734424,18.12096,136.4,136.34,2.45]
[1763677735829,15.43150316,136.4,136.34,2.45]
[1763677737119,62.36232207,136.39,136.31,0.69]
[1763677737332,62.36232207,136.39,136.31,2.45]
[1763677737552,9.78882769,136.38,136.31,2.45]
[1763677737746,7.33299112,136.37,136.32,0.69]
[1763677737935,7.16848823,136.38,136.32,0.69]
[1763677738547,18.12096,136.39,136.33,0.14216157]
[1763677738749,8.24790058,136.42,136.39,5.6460794]
[1763677739046,2.94236639,136.41,136.36,0.69]
[1763677739825,8.24790058,136.42,136.36,0.69]
[1763677740250,44.69635937,136.43,136.36,0.69]
[1763677740545,62.81731937,136.43,136.36,0.69]
[1763677741162,52.02513098,136.42,136.33,1.76]
[1763677741323,33.6993723,136.42,136.34,0.69]
[1763677741654,25.45147172,136.42,136.34,0.69]
[1763677741944,15.4918333,136.42,136.34,0.69]
[1763677742970,22.09811633,136.44,136.35,18.26312157]
[1763677743255,16.65280131,136.45,136.36,0.69]
[1763677743841,6.3306919,136.45,136.36,0.69]
[1763677744054,0.42650419,136.45,136.36,0.69]
[1763677744237,18.54746419,136.45,136.36,0.69]
[1763677745254,44.19809965,136.45,136.36,0.69]
[1763677745859,4.94611166,136.44,136.36,0.69]
[1763677746050,36.86936956,136.45,136.36,0.69]
[1763677746457,18.54763999,136.45,136.36,0.69]
[1763677746658,18.12096,136.43,136.37,1.76]
[1763677747054,18.12096,136.43,136.37,2.45]
[1763677747640,18.12096,136.43,136.35,0.69]
[1763677747846,18.12096,136.43,136.36,1.76]
[1763677748067,33.79431825,136.43,136.36,1.76]
[1763677748371,18.32496705,136.43,136.36,2.45]
[1763677748968,9.78882769,136.44,136.36,1.76]
[1763677749266,22.80750348,136.45,136.38,0.14216157]
[1763677749471,22.80750348,136.45,136.38,9.93098926]
[1763677749472,22.38082349,136.45,136.38,9.93098926]
[1763677749771,0.1,136.52,136.39,1.83046157]
[1763677749952,7.42493407,136.52,136.41,18.12096]
[1763677750160,31.67877101,136.52,136.4,0.69]
[1763677750356,18.12096,136.49,136.41,1.76]
[1763677750545,18.12096,136.48,136.42,0.69]
[1763677750742,9.78882769,136.47,136.37,0.69]
[1763677750973,9.78882769,136.47,136.38,0.36]
[1763677751169,9.78882769,136.47,136.39,0.69]
[1763677751578,9.78882769,136.43,136.36,0.69]
[1763677752170,16.27061719,136.42,136.36,0.11871548]
[1763677752680,0.58,136.41,136.36,0.11871548]
[1763677752981,0.58,136.41,136.34,1.76]
[1763677753976,23.02092066,136.42,136.41,8.38933188]
[1763677754273,5.67053873,136.42,136.35,0.69]
[1763677755476,23.99629741,136.42,136.35,0.69]
[1763677756475,14.00076347,136.42,136.35,0.69]
[1763677756683,36.10707758,136.43,136.35,0.69]
[1763677757380,7.33030347,136.42,136.35,0.69]
[1763677758275,4.94524289,136.41,136.35,0.69]
[1763677758470,4.94535449,136.4,136.35,0.69]
[1763677758667,6.18118392,136.4,136.35,0.69]
[1763677759053,54.43271904,136.43,136.4,6.61940753]
[1763677760279,7.33030347,136.42,136.4,6.61940753]
[1763677760578,54.43271904,136.43,136.4,6.61940753]
[1763677761489,61.76248522,136.43,136.4,6.61940753]
[1763677762283,61.76248522,136.43,136.4,1.10086123]
[1763677762488,43.43684376,136.43,136.4,1.10086123]
[1763677763496,61.76248522,136.43,136.4,1.10086123]
[1763677764076,25.65540764,136.43,136.38,0.69]
[1763677764481,15.6203883,136.43,136.38,0.69]
[1763677766175,46.25652605,136.42,136.34,0.71]
[1763677766393,38.08553679,136.42,136.35,0.71]
[1763677767696,7.33084084,136.41,136.35,0.71]
[1763677768097,25.65794295,136.41,136.35,0.71]
[1763677768281,62.26406229,136.41,136.28,18.12096]
[1763677768485,62.26406229,136.41,136.34,0.71]
[1763677768688,70.40486427,136.41,136.34,0.71]
[1763677768999,46.68155336,136.4,136.31,1.76]
[1763677769177,18.12096,136.38,136.33,0.71]
[1763677769771,7.33299112,136.37,136.33,0.71]
[1763677770367,4.94628261,136.36,136.33,0.71]
[1763677770567,36.45264429,136.38,136.33,0.71]
[1763677771013,1.76,136.37,136.29,0.71]
[1763677771174,9.78882769,136.36,136.21,9.78882769]
[1763677771372,9.78882769,136.36,136.29,0.71]
[1763677771784,7.33568075,136.32,136.29,0.71]
[1763677772575,7.33568075,136.32,136.27,0.7]
[1763677772776,15.50474348,136.33,136.27,0.7]
[1763677773774,35.46371031,136.32,136.25,0.7]
[1763677774201,62.46853235,136.32,136.25,0.7]
[1763677774501,7.33568075,136.32,136.25,0.7]
[1763677774794,15.50137764,136.33,136.25,0.7]
[1763677775602,164.3,136.38,136.26,9.93098926]
[1763677775904,27.42372939,136.38,136.26,9.93098926]
[1763677776104,27.42372939,136.38,136.27,0.7]
[1763677776886,19.15140073,136.38,136.27,0.7]
[1763677777086,19.88096,136.38,136.27,0.7]
[1763677777286,19.88096,136.38,136.28,1.76]
[1763677777793,27.21341343,136.38,136.29,0.7]
[1763677778107,61.58975483,136.38,136.29,0.7]
[1763677778490,79.92088842,136.38,136.29,0.7]
[1763677778894,69.92537193,136.38,136.29,0.7]
[1763677779192,60.61354954,136.38,136.29,0.7]
[1763677780999,54.46747499,136.38,136.29,0.7]
[1763677782187,43.46879483,136.38,136.29,0.7]
[1763677782596,12.26305631,136.37,136.29,0.7]
[1763677782798,4.92979107,136.36,136.29,0.7]
[1763677782999,36.46224338,136.38,136.29,0.7]
[1763677784120,18.12096,136.39,136.3,0.14216157]
[1763677784319,18.12096,136.37,136.3,0.14216157]
[1763677784508,18.12096,136.37,136.31,0.7]
[1763677785020,7.33249443,136.38,136.31,0.7]
[1763677785722,191.22498956,136.4,136.31,0.7]
[1763677785924,194.71813631,136.4,136.31,0.7]
[1763677786420,187.38672,136.4,136.32,0.14216157]
[1763677786795,187.38672,136.4,136.33,0.7]
[1763677787109,177.37189631,136.4,136.33,0.7]
[1763677787293,184.7032854,136.4,136.33,0.7]
[1763677789124,174.69428287,136.4,136.33,0.7]
[1763677789413,166.97748234,136.4,136.33,0.7]
[1763677791218,156.96650029,136.4,136.33,0.7]
[1763677791810,156.96650029,136.4,136.33,2.46]
[1763677792296,156.96650029,136.4,136.34,0.68]
[1763677793418,139.65682776,136.4,136.34,0.68]
[1763677794005,146.98826989,136.4,136.34,0.68]
[1763677794434,133.09195334,136.4,136.34,0.68]
[1763677795025,4.93122607,136.39,136.34,0.68]
[1763677795329,120.67657435,136.4,136.34,0.68]
[1763677796411,128.00795567,136.4,136.34,0.68]
[1763677797125,120.67657435,136.4,136.34,0.68]
[1763677797427,110.71871518,136.4,136.34,0.68]
[1763677799506,86.76667535,136.4,136.34,0.68]